fUSD/lending_fUSD_20251206
["ID","MTS","AMOUNT","RATE_DAILY","PERIOD"]
[396513551,1765025256831,-134.03429679,0.00013808,2]
[396513552,1765025256863,-300.0,0.00013908,2]
[396513553,1765025256894,-365.8974645,0.00013908,2]
[396513554,1765025256925,-151.0,0.00013932,2]
[396513555,1765025256955,-151.0,0.00013932,2]
[396513556,1765025256987,-154.61945698,0.00013932,2]
[396513557,1765025257023,-500.0,0.00013934,2]
[396513558,1765025257059,-600.0,0.00013934,2]
[396513559,1765025257093,-500.0,0.00013934,2]
[396513560,1765025257127,-500.0,0.00013934,2]
[396513561,1765025257161,-500.0,0.00013934,2]
[396513562,1765025257195,-500.0,0.00013934,2]
[396513563,1765025257228,-500.0,0.00013934,2]
[396513565,1765025261307,286.90756346,0.00013835,2]
[396513566,1765025261333,302.14929849,0.00013835,2]
[396513567,1765025261852,-528.15159698,0.00013935,2]
[396513568,1765025264348,-171.08071791,0.00013935,2]
[396513569,1765025267160,-421.06605408,0.00013935,2]
[396513570,1765025268646,166.67,0.00013868,2]
[396513571,1765025269966,-192.76351544,0.00013935,2]
[396513572,1765025272611,-188.95444645,0.00013935,2]
[396513573,1765025274635,-540.56864841,0.00013935,2]
[396513575,1765025276880,1200.0,0.00013934,2]
[396513576,1765025276922,-281.8735946,0.00013935,2]
[396513577,1765025278992,-485.64954908,0.00013935,2]
[396513578,1765025280599,-164.37742808,0.00013935,2]
[396513579,1765025281342,300.0,0.00013934,2]
[396513580,1765025282005,-214.29268096,0.00013935,2]
[396513582,1765025283620,-316.72671855,0.00013935,2]
[396513583,1765025283726,150.0,0.00013934,2]
[396513584,1765025285493,-300.0,0.00013935,2]
[396513585,1765025288480,-197.25401558,0.00013935,2]
[396513586,1765025290293,7881.19070151,0.00013457,2]
[396513587,1765025290320,6566.04929849,0.00013457,2]
[396513588,1765025290989,-211.52983117,0.00013935,2]
[396513589,1765025293852,-416.53052725,0.00013935,2]
[396513594,1765025295708,-422.76234728,0.00013935,2]
[396513599,1765025297550,-322.05732119,0.00013935,2]
[396513601,1765025299101,-516.63433525,0.00013935,2]
[396513602,1765025301254,-181.19692084,0.00013935,2]
[396513603,1765025302800,-298.72013057,0.00013935,2]
[396513604,1765025304315,-271.42053813,0.00013935,2]
[396513606,1765025306494,-220.14760947,0.00013935,2]
[396513607,1765025309712,-152.23643076,0.00013935,2]
[396513609,1765025311291,-300.0,0.00013935,2]
[396513613,1765025315184,-332.31856506,0.00013935,2]
[396513614,1765025317248,-175.2123444,0.00013935,2]
[396513615,1765025318652,-238.26276826,0.00013935,2]
[396513616,1765025320615,-410.6718391,0.00013935,2]
[396513618,1765025324498,-232.63401562,0.00013935,2]
[396513619,1765025325837,-157.90268983,0.00013935,2]
[396513620,1765025329060,-183.17123443,0.00013935,2]
[396513622,1765025331203,-300.0,0.00013935,2]
[396513623,1765025332928,-300.0,0.00013935,2]
[396513624,1765025335160,-350.07233169,0.00013935,2]
[396513625,1765025335196,500.0,0.000155,4]
[396513626,1765025338319,2009.4545,0.00013835,2]
[396513627,1765025342716,-314.20831605,0.00013935,2]
[396513628,1765025343105,1000.0,0.00013821,3]
[396513630,1765025343688,9000.01,0.00013928,2]
[396513631,1765025343717,10000.01,0.00013928,2]
[396513632,1765025343745,10000.01,0.00013928,2]
[396513633,1765025343773,10000.01,0.00013928,2]
[396513635,1765025343802,10000.01,0.00013928,2]
[396513636,1765025343829,10000.01,0.00013928,2]
[396513637,1765025343859,10000.01,0.00013928,2]
[396513638,1765025343887,10000.01,0.00013928,2]
[396513639,1765025343916,10000.01,0.00013928,2]
[396513659,1765025396544,-1360.1566066,0.00013916,2]
[396513660,1765025396574,-1980.90553312,0.00013927,2]
[396513662,1765025401796,-300.0,0.00013927,2]
[396513663,1765025401827,-300.0,0.00013927,2]
[396513664,1765025401860,-1200.0,0.00013927,2]
[396513665,1765025402066,-7109.27533578,0.00013928,2]
[396513666,1765025402218,-300.0,0.00013928,2]
[396513667,1765025402249,-300.0,0.00013928,2]
[396513668,1765025402264,-1200.0,0.00013928,2]
[396513669,1765025402284,-6400.01,0.00013928,2]
[396513670,1765025402307,-10000.01,0.00013928,2]
[396513671,1765025402332,-10000.01,0.00013928,2]
[396513672,1765025402375,-10000.01,0.00013928,2]
[396513673,1765025402431,-5120.59466422,0.00013928,2]
[396513674,1765025402441,-4879.41533578,0.00013928,2]
[396513675,1765025402815,-182.46438961,0.00013928,2]
[396513676,1765025403984,-3483.30773451,0.00013928,2]
[396513677,1765025404016,-265.0,0.00013928,2]
[396513678,1765025405007,-162.175406,0.00013935,2]
[396513679,1765025407140,-241.32,0.00013935,2]
[396513680,1765025408694,-269.5080365,0.00013935,2]
[396513681,1765025410738,-155.32499974,0.00013935,2]
[396513683,1765025413304,-200.72326625,0.00013935,2]
[396513688,1765025415848,-317.86186947,0.00013935,2]
[396513691,1765025418392,-167.5883771,0.00013935,2]
[396513693,1765025420488,-169.92881942,0.00013935,2]
[396513694,1765025422082,-437.64522149,0.00013935,2]
[396513696,1765025424183,-250.42289508,0.00013935,2]
[396513697,1765025426449,-405.93948708,0.00013935,2]
[396513698,1765025428035,-453.86791931,0.00013935,2]
[396513699,1765025431324,-280.66461369,0.00013935,2]
[396513702,1765025432087,-330.4302491,0.00013935,2]
[396513703,1765025432099,-583.18548524,0.00013935,2]
[396513706,1765025432144,-54174.30873714,0.00013935,2]
[396513707,1765025432251,-4337.01255468,0.00013935,2]
[396513708,1765025432310,-276.65889505,0.00013935,2]
[396513709,1765025432365,-19779.028197,0.00013935,2]
[396513715,1765025433512,-272.32229199,0.00013935,2]
[396513716,1765025434550,-222.32551363,0.00013935,2]
[396513717,1765025437776,-199.35679758,0.00013935,2]
[396513724,1765025439312,-308.03318091,0.00013935,2]
[396513725,1765025440302,-658840.57778021,0.00013935,2]
[396513726,1765025440322,-1000.0,0.00013935,2]
[396513727,1765025440333,-2500.0,0.00013935,2]
[396513728,1765025440343,-244.32357407,0.00013935,2]
[396513729,1765025440354,-250.0,0.00013943,2]
[396513730,1765025440363,-300.0,0.00013943,2]
[396513731,1765025440374,-195.0,0.0001395,2]
[396513732,1765025440385,-200.0,0.00013964,2]
[396513733,1765025440394,-207.4,0.00013964,2]
[396513734,1765025440405,-215.0738,0.00013964,2]
[396513735,1765025440415,-223.0315306,0.00013964,2]
[396513736,1765025440425,-231.28369723,0.00013964,2]
[396513737,1765025440434,-239.84119403,0.00013964,2]
[396513738,1765025440445,-248.71531821,0.00013964,2]
[396513739,1765025440454,-257.91778498,0.00013964,2]
[396513740,1765025440464,-267.46074303,0.00013964,2]
[396513741,1765025440477,-418.7957,0.00014,2]
[396513742,1765025440486,-4981.09038653,0.0001401,2]
[396513743,1765025440497,-8729.48864835,0.0001401,2]
[396513744,1765025440509,-151.23726078,0.00014027,2]
[396513745,1765025440518,-200.0,0.00014027,2]
[396513746,1765025440528,-151.0,0.00014027,2]
[396513747,1765025440537,-151.0,0.00014027,2]
[396513748,1765025440546,-153.04590278,0.00014027,2]
[396513749,1765025440555,-151.0,0.00014027,2]
[396513750,1765025440564,-500.0,0.00014027,2]
[396513751,1765025440573,-1737.77789309,0.00014027,2]
[396513752,1765025440582,-151.0,0.00014027,2]
[396513753,1765025440592,-511.18723417,0.00014027,2]
[396513754,1765025440602,-500.0,0.00014027,2]
[396513755,1765025440612,-386.5884003,0.00014027,2]
[396513756,1765025440622,-500.0,0.00014027,2]
[396513757,1765025440632,-500.0,0.00014027,2]
[396513758,1765025440643,-574.12855637,0.00014027,2]
[396513759,1765025440653,-500.0,0.00014027,2]
[396513760,1765025440663,-500.0,0.00014027,2]
[396513761,1765025440671,-500.0,0.00014027,2]
[396513762,1765025440681,-151.0,0.00014027,2]
[396513763,1765025440690,-284.9262,0.00014027,2]
[396513764,1765025440700,-500.0,0.00014027,2]
[396513765,1765025440709,-500.0,0.00014027,2]
[396513766,1765025440719,-1000.0,0.00014027,2]
[396513767,1765025440729,-500.0,0.00014027,2]
[396513768,1765025440738,-500.0,0.00014027,2]
[396513770,1765025441114,-1000.0,0.00014027,2]
[396513771,1765025441124,-500.0,0.00014027,2]
[396513772,1765025441134,-500.0,0.00014027,2]
[396513773,1765025441143,-1000.0,0.00014027,2]
[396513774,1765025441152,-503.93214837,0.00014027,2]
[396513775,1765025441162,-500.0,0.00014027,2]
[396513776,1765025441171,-397.54712625,0.00014027,2]
[396513777,1765025441180,-1000.0,0.00014027,2]
[396513778,1765025441189,-500.0,0.00014027,2]
[396513779,1765025441199,-1000.0,0.00014027,2]
[396513780,1765025441208,-500.0,0.00014027,2]
[396513781,1765025441217,-1000.0,0.00014027,2]
[396513782,1765025441227,-1000.0,0.00014027,2]
[396513783,1765025441238,-1000.0,0.00014027,2]
[396513784,1765025441247,-200.0,0.00014027,2]
[396513785,1765025441256,-1000.0,0.00014027,2]
[396513786,1765025441266,-1000.0,0.00014027,2]
[396513787,1765025441276,-250.0,0.00014027,2]
[396513788,1765025441286,-277.35679052,0.00014027,2]
[396513789,1765025441295,-250.0,0.00014027,2]
[396513790,1765025441305,-250.0,0.00014027,2]
[396513791,1765025441316,-250.0,0.00014027,2]
[396513792,1765025441325,-250.0,0.00014027,2]
[396513793,1765025441335,-250.0,0.00014027,2]
[396513794,1765025441344,-250.0,0.00014027,2]
[396513795,1765025441355,-250.0,0.00014027,2]
[396513796,1765025441365,-250.0,0.00014027,2]
[396513797,1765025441375,-250.0,0.00014027,2]
[396513798,1765025441386,-250.0,0.00014027,2]
[396513799,1765025441395,-500.0,0.00014027,2]
[396513800,1765025441405,-250.0,0.00014027,2]
[396513801,1765025441414,-250.0,0.00014027,2]
[396513802,1765025441424,-500.0,0.00014027,2]
[396513803,1765025441434,-250.0,0.00014027,2]
[396513804,1765025441443,-250.0,0.00014027,2]
[396513805,1765025441452,-500.0,0.00014027,2]
[396513806,1765025441464,-250.0,0.00014027,2]
[396513807,1765025441473,-250.0,0.00014027,2]
[396513808,1765025441482,-500.0,0.00014027,2]
[396513809,1765025441491,-151.0,0.00014027,2]
[396513810,1765025441500,-250.0,0.00014027,2]
[396513811,1765025441509,-250.0,0.00014027,2]
[396513812,1765025441518,-500.0,0.00014027,2]
[396513813,1765025441527,-250.0,0.00014027,2]
[396513814,1765025441536,-151.0,0.00014027,2]
[396513815,1765025441545,-500.0,0.00014027,2]
[396513816,1765025441554,-151.0,0.00014027,2]
[396513817,1765025441563,-500.0,0.00014027,2]
[396513818,1765025441572,-151.0,0.00014027,2]
[396513819,1765025441582,-500.0,0.00014027,2]
[396513820,1765025441592,-151.0,0.00014027,2]
[396513821,1765025441601,-500.0,0.00014027,2]
[396513822,1765025441613,-151.0,0.00014027,2]
[396513823,1765025441622,-151.0,0.00014027,2]
[396513824,1765025441631,-151.0,0.00014027,2]
[396513825,1765025441640,-151.0,0.00014027,2]
[396513826,1765025441649,-151.0,0.00014027,2]
[396513827,1765025441660,-151.0,0.00014027,2]
[396513828,1765025441669,-151.0,0.00014027,2]
[396513829,1765025441679,-693.3919763,0.00014027,2]
[396513830,1765025441688,-300.0,0.00014027,2]
[396513831,1765025441699,-1112.19,0.00014027,2]
[396513832,1765025441711,-1000.0,0.00014033,3]
[396513833,1765025441720,-1004.51238171,0.00014034,2]
[396513834,1765025441731,-500.0,0.00014034,2]
[396513835,1765025441740,-500.0,0.00014034,2]
[396513836,1765025441752,-500.0,0.00014034,2]
[396513837,1765025441762,-500.0,0.00014034,2]
[396513838,1765025441772,-500.0,0.00014034,2]
[396513839,1765025441782,-500.0,0.00014034,2]
[396513840,1765025441791,-500.0,0.00014034,2]
[396513841,1765025441800,-1000.0,0.00014034,2]
[396513842,1765025441810,-502.41193472,0.00014034,2]
[396513843,1765025441819,-500.0,0.00014034,2]
[396513844,1765025441828,-578.20924308,0.00014035,2]
[396513845,1765025441837,-166.66,0.0001411,2]
[396513846,1765025441847,-502.16669694,0.00014135,2]
[396513847,1765025441857,-500.0,0.00014135,2]
[396513848,1765025441866,-500.0,0.00014135,2]
[396513849,1765025441877,-500.0,0.00014169,2]
[396513850,1765025441887,-500.0,0.00014169,2]
[396513851,1765025441896,-500.0,0.00014169,2]
[396513852,1765025441906,-200.0,0.00014175,2]
[396513853,1765025441916,-9999.99,0.00014175,2]
[396513854,1765025441926,-150.99,0.00014175,2]
[396513855,1765025441935,-9999.99,0.00014175,2]
[396513856,1765025441944,-150.99,0.00014175,2]
[396513857,1765025441954,-500.0,0.00014233,2]
[396513858,1765025441963,-282.9143022,0.00014233,2]
[396513859,1765025441973,-500.0,0.00014233,2]
[396513860,1765025441982,-249.84,0.00014234,2]
[396513861,1765025441992,-3798.63,0.00014234,2]
[396513862,1765025442001,-1851.0,0.00014237,2]
[396513863,1765025442011,-166.66,0.00014247,2]
[396513864,1765025442020,-9999.99,0.00014247,2]
[396513865,1765025442030,-7121.33,0.00014247,2]
[396513866,1765025442039,-510.84,0.00014247,2]
[396513867,1765025442048,-1752.0,0.00014256,2]
[396513868,1765025442058,-491.0,0.00014264,2]
[396513869,1765025442067,-683.56459266,0.00014266,2]
[396513870,1765025442076,-1056.0,0.00014285,2]
[396513871,1765025442086,-1112.19,0.00014301,2]
[396513872,1765025442096,-1647.0,0.00014313,2]
[396513873,1765025442105,-200.0,0.00014317,2]
[396513874,1765025442115,-507.17450848,0.00014321,2]
[396513875,1765025442124,-500.0,0.00014321,2]
[396513876,1765025442133,-500.0,0.00014321,2]
[396513877,1765025442142,-500.0,0.00014321,2]
[396513878,1765025442151,-500.0,0.00014321,2]
[396513879,1765025442160,-1500.0,0.00014323,2]
[396513880,1765025442169,-1207.0,0.00014342,2]
[396513881,1765025442179,-200.0,0.00014354,2]
[396513882,1765025442188,-14502.83,0.00014354,2]
[396513883,1765025442197,-1589.0,0.0001437,2]
[396513884,1765025442206,-166.66,0.00014384,2]
[396513885,1765025442215,-7847.96319158,0.0001439,2]
[396513886,1765025442224,-1339.66552441,0.00014398,2]
[396513887,1765025442234,-1286.0,0.00014399,2]
[396513888,1765025442243,-589.05686191,0.00014416,2]
[396513889,1765025442252,-1303.5,0.00014422,2]
[396513890,1765025442261,-1735.0,0.00014427,2]
[396513891,1765025442270,-338.0,0.0001443,2]
[396513892,1765025442279,-397.0,0.00014435,2]
[396513893,1765025442288,-11964.48628072,0.00014442,2]
[396513894,1765025442298,-8729.48864827,0.00014442,2]
[396513895,1765025442307,-703.23,0.000145,2]
[396513896,1765025442317,-480.22,0.000145,2]
[396513897,1765025442326,-703.23,0.000145,2]
[396513898,1765025442335,-480.22,0.000145,2]
[396513899,1765025442344,-500.0,0.00014553,2]
[396513900,1765025442353,-200.0,0.00014575,2]
[396513901,1765025442362,-151.0,0.00014575,2]
[396513902,1765025442372,-1000.0,0.00014575,2]
[396513903,1765025442381,-201.32298322,0.00014575,2]
[396513904,1765025442390,-151.0,0.00014575,2]
[396513905,1765025442399,-1112.19,0.00014575,2]
[396513906,1765025442408,-500.0,0.00014575,2]
[396513907,1765025442417,-247.94,0.00014579,2]
[396513908,1765025442426,-703.23,0.000146,2]
[396513909,1765025442435,-702.26,0.000146,2]
[396513910,1765025442445,-973.21,0.000146,2]
[396513911,1765025442454,-480.22,0.000146,2]
[396513912,1765025442463,-11963.8,0.00014625,2]
[396513913,1765025442472,-1980.90553312,0.00014697,2]
[396513914,1765025442481,-228.67,0.000148,2]
[396513915,1765025442490,-11964.48628072,0.00014874,2]
[396513916,1765025442499,-8729.48864827,0.00014874,2]
[396513917,1765025442508,-300.0,0.00014883,2]
[396513918,1765025442516,-195.0,0.00014883,2]
[396513919,1765025442525,-300.0,0.00014883,2]
[396513920,1765025442534,-193.0,0.00014883,2]
[396513921,1765025442543,-979.0,0.00014949,2]
[396513922,1765025442552,-249.84,0.00014983,2]
[396513923,1765025442561,-104710.27,0.00014991,2]
[396513924,1765025442570,-151.0,0.00014992,2]
[396513925,1765025442578,-151.0,0.00014992,2]
[396513926,1765025442587,-151.0,0.00014992,2]
[396513927,1765025442596,-151.0,0.00014992,2]
[396513928,1765025442605,-151.0,0.00014992,2]
[396513929,1765025442614,-151.0,0.00014992,2]
[396513930,1765025442622,-230.652571,0.00014992,2]
[396513931,1765025442631,-589.05686191,0.00014996,2]
[396513932,1765025442640,-544.03815169,0.00015,2]
[396513933,1765025442649,-2036.93545208,0.00015,2]
[396513934,1765025442658,-5000.0,0.00015,2]
[396513935,1765025442667,-3696.56998427,0.00015,2]
[396513936,1765025442676,-3395.47964842,0.00015,2]
[396513937,1765025442687,-166.67,0.00015012,2]
[396513938,1765025442697,-255.0,0.00015049,2]
[396513939,1765025442706,-214.65,0.00015068,2]
[396513940,1765025442716,-153.260176,0.00015068,2]
[396513941,1765025442725,-153.260176,0.00015068,2]
[396513942,1765025442734,-153.260176,0.00015068,2]
[396513943,1765025442743,-153.260176,0.00015068,2]
[396513944,1765025442753,-979.0,0.00015083,2]
[396513945,1765025442762,-500.0,0.00015099,2]
[396513946,1765025442771,-365.78371266,0.00015099,2]
[396513947,1765025442780,-500.0,0.00015099,2]
[396513948,1765025442790,-500.0,0.00015099,2]
[396513949,1765025442799,-500.0,0.00015099,2]
[396513950,1765025442809,-466.85814393,0.00015099,2]
[396513951,1765025442818,-500.0,0.00015099,2]
[396513952,1765025442827,-629.18828695,0.00015099,2]
[396513953,1765025442837,-500.0,0.00015099,2]
[396513954,1765025442846,-39642.3201788,0.000151,2]
[396513955,1765025442857,-153.148386,0.000151,2]
[396513956,1765025442866,-151.0,0.000151,2]
[396513957,1765025442877,-151.0,0.000151,2]
[396513958,1765025442886,-151.0,0.000151,2]
[396513959,1765025442896,-153.142988,0.000151,2]
[396513960,1765025442905,-151.0,0.000151,2]
[396513961,1765025442916,-225.05703168,0.00015123,2]
[396513962,1765025442926,-151.0,0.00015123,2]
[396513963,1765025442935,-1000.0,0.00015123,2]
[396513964,1765025442944,-151.0,0.00015123,2]
[396513965,1765025442953,-1112.19,0.00015123,2]
[396513966,1765025442963,-420.0,0.00015259,2]
[396513967,1765025442972,-420.0,0.00015259,2]
[396513968,1765025442981,-979.0,0.00015269,2]
[396513969,1765025442990,-150.0,0.00015288,2]
[396513971,1765025442999,-150.0,0.00015288,2]
[396513973,1765025443009,-150.0,0.00015288,2]
[396513974,1765025443018,-150.0,0.00015288,2]
[396513975,1765025443027,-150.0,0.00015288,2]
[396513976,1765025443036,-150.0,0.00015288,2]
[396513977,1765025443046,-150.0,0.00015288,2]
[396513978,1765025443055,-150.0,0.00015288,2]
[396513979,1765025443064,-150.0,0.00015288,2]
[396513980,1765025443074,-150.0,0.00015288,2]
[396513981,1765025443083,-150.0,0.00015288,2]
[396513983,1765025443092,-150.0,0.00015288,2]
[396513985,1765025443102,-150.0,0.00015288,2]
[396513986,1765025443112,-150.0,0.00015288,2]
[396513987,1765025443121,-11964.48628072,0.00015307,2]
[396513988,1765025443131,-8729.48864827,0.00015307,2]
[396513989,1765025443140,-2255.51,0.0001531,2]
[396513990,1765025443149,-1680.0,0.0001532,2]
[396513991,1765025443158,-300.0,0.00015321,2]
[396513992,1765025443167,-300.0,0.00015329,2]
[396513993,1765025443176,-195.0,0.00015329,2]
[396513994,1765025443186,-193.0,0.00015329,2]
[396513995,1765025443195,-195.0,0.00015329,2]
[396513996,1765025443204,-250.0,0.00015329,2]
[396513997,1765025443213,-300.0,0.00015329,2]
[396513998,1765025443222,-300.0,0.00015329,2]
[396513999,1765025443231,-195.0,0.00015329,2]
[396514000,1765025443241,-150.0,0.00015353,2]
[396514001,1765025443250,-150.0,0.00015365,2]
[396514002,1765025443262,-150.0,0.00015369,2]
[396514003,1765025443271,-287.61899177,0.00015396,2]
[396514004,1765025443280,-311.1,0.00015396,2]
[396514005,1765025443289,-1112.19,0.00015397,2]
[396514006,1765025443299,-180.0,0.00015399,2]
[396514007,1765025443308,-180.0,0.00015408,2]
[396514008,1765025443317,-250.0,0.00015411,2]
[396514009,1765025443326,-150.0,0.00015418,2]
[396514010,1765025443336,-150.0,0.00015418,2]
[396514011,1765025443345,-180.0,0.00015419,2]
[396514012,1765025443355,-979.0,0.00015422,2]
[396514013,1765025443364,-979.0,0.00015423,2]
[396514014,1765025443374,-150.0,0.00015429,2]
[396514015,1765025443383,-150.0,0.00015442,2]
[396514016,1765025443392,-150.0,0.00015442,2]
[396514017,1765025443402,-150.0,0.00015449,2]
[396514018,1765025443412,-1980.90553312,0.00015467,2]
[396514019,1765025443422,-150.0,0.00015476,2]
[396514020,1765025443431,-150.0,0.00015484,2]
[396514021,1765025443520,-1214.43039997,0.0001549,2]
[396514022,1765025443530,-180.0,0.00015492,2]
[396514023,1765025443540,-1000.0,0.00015499,3]
[396514024,1765025443549,-87341.10775808,0.000155,2]
[396514025,1765025443558,-151.327803,0.000155,2]
[396514026,1765025443568,-151.0,0.000155,2]
[396514027,1765025443577,-151.0,0.000155,2]
[396514029,1765025443588,-152.74448,0.000155,2]
[396514030,1765025443596,-153.260176,0.000155,2]
[396514032,1765025443606,-153.260176,0.000155,2]
[396514034,1765025443619,-153.260176,0.000155,2]
[396514036,1765025443628,-153.260176,0.000155,2]
[396514037,1765025443637,-153.80733,0.000155,2]
[396514038,1765025443647,-200.0,0.000155,2]
[396514039,1765025443659,-151.0,0.000155,2]
[396514040,1765025443669,-151.0,0.000155,2]
[396514041,1765025443678,-284.791605,0.000155,2]
[396514042,1765025443689,-151.0,0.000155,2]
[396514043,1765025443699,-161.616385,0.000155,2]
[396514044,1765025443712,-150.0,0.00015519,2]
[396514045,1765025443723,-150.0,0.0001553,2]
[396514046,1765025443731,-150.0,0.00015549,2]
[396514047,1765025443740,-150.0,0.00015549,2]
[396514049,1765025443750,-139430.0,0.00015566,2]
[396514051,1765025443759,-180.0,0.00015567,2]
[396514053,1765025443769,-150.0,0.00015571,2]
[396514054,1765025443778,-589.05686191,0.00015577,2]
[396514055,1765025443787,-180.0,0.00015593,2]
[396514056,1765025443796,-150.0,0.00015597,2]
[396514057,1765025443805,-150.0,0.00015597,2]
[396514058,1765025443815,-150.0,0.00015611,2]
[396514059,1765025443825,-150.0,0.00015614,2]
[396514060,1765025443835,-150.0,0.00015627,2]
[396514061,1765025443844,-530.0,0.0001566,2]
[396514062,1765025443853,-530.0,0.00015664,2]
[396514063,1765025443863,-2277.703,0.00015665,2]
[396514064,1765025443872,-167.103,0.00015665,2]
[396514065,1765025443882,-150.0,0.00015665,2]
[396514066,1765025443891,-154.00777312,0.00015671,2]
[396514067,1765025443900,-1000.0,0.00015671,2]
[396514068,1765025443910,-194.9707614,0.00015671,2]
[396514069,1765025443919,-1112.19,0.00015671,2]
[396514070,1765025443928,-150.0,0.00015674,2]
[396514071,1765025443938,-150.0,0.0001568,2]
[396514072,1765025443947,-150.0,0.0001568,2]
[396514073,1765025443956,-500.0,0.0001568,2]
[396514074,1765025443966,-500.0,0.00015681,2]
[396514075,1765025443975,-500.0,0.00015682,2]
[396514076,1765025443984,-500.0,0.00015683,2]
[396514077,1765025443994,-500.0,0.00015684,2]
[396514078,1765025444004,-500.0,0.00015685,2]
[396514079,1765025444013,-500.0,0.00015686,2]
[396514080,1765025444023,-500.0,0.00015687,2]
[396514081,1765025444032,-500.0,0.00015688,2]
[396514082,1765025444042,-500.0,0.00015689,2]
[396514083,1765025444051,-500.0,0.0001569,2]
[396514084,1765025444060,-500.0,0.00015691,2]
[396514085,1765025444070,-500.0,0.00015692,2]
[396514086,1765025444080,-150.0,0.00015692,2]
[396514087,1765025444088,-500.0,0.00015693,2]
[396514088,1765025444097,-500.0,0.00015694,2]
[396514089,1765025444106,-500.0,0.00015695,2]
[396514090,1765025444115,-500.0,0.00015696,2]
[396514091,1765025444124,-500.0,0.00015697,2]
[396514092,1765025444133,-500.0,0.00015698,2]
[396514093,1765025444142,-500.0,0.00015699,2]
[396514094,1765025444151,-543.284088,0.000157,2]
[396514095,1765025444160,-150.0,0.00015712,2]
[396514096,1765025444169,-249.84,0.00015732,2]
[396514097,1765025444179,-11964.48628072,0.00015739,2]
[396514098,1765025444188,-8729.48864827,0.00015739,2]
[396514099,1765025444198,-151.0,0.00015739,2]
[396514100,1765025444208,-151.0,0.00015739,2]
[396514101,1765025444218,-183.404618,0.00015739,2]
[396514102,1765025444228,-151.0,0.00015739,2]
[396514103,1765025444238,-150.0,0.00015745,2]
[396514104,1765025444247,-150.0,0.00015751,2]
[396514105,1765025444258,-150.0,0.00015751,2]
[396514106,1765025444269,-150.0,0.00015773,2]
[396514107,1765025444278,-168.0,0.00015788,2]
[396514108,1765025444287,-150.0,0.0001581,2]
[396514109,1765025444296,-150.0,0.0001581,2]
[396514110,1765025444306,-150.0,0.00015828,2]
[396514111,1765025444316,-168.0,0.00015839,2]
[396514112,1765025444327,-150.0,0.00015854,2]
[396514113,1765025444336,-150.0,0.00015854,2]
[396514114,1765025444345,-150.0,0.00015854,2]
[396514115,1765025444354,-150.0,0.00015854,2]
[396514116,1765025444363,-200.0,0.00015864,2]
[396514117,1765025444372,-200.0,0.00015867,2]
[396514118,1765025444381,-200.0,0.00015868,2]
[396514119,1765025444391,-200.0,0.0001587,2]
[396514120,1765025444400,-150.0,0.00015876,2]
[396514121,1765025444408,-896.48342988,0.000159,2]
[396514122,1765025444418,-315.93113502,0.000159,2]
[396514123,1765025444426,-4795.8497,0.000159,2]
[396514124,1765025444435,-1602.0509667,0.000159,2]
[396514125,1765025444445,-1941.88188555,0.000159,2]
[396514126,1765025444454,-1941.88188554,0.000159,2]
[396514127,1765025444463,-1941.88188554,0.000159,2]